bitfinex/quotes_BTCUSD_20241119
["timestamp","ask_amount","ask_price","bid_price","bid_amount"]
[1732014387360,0.00171,91820.0,91818.0,0.62898072]
[1732014388008,0.00171,91820.0,91818.0,0.82432471]
[1732014388225,0.00371,91819.0,91818.0,0.83832471]
[1732014388432,0.00371,91819.0,91818.0,0.88260958]
[1732014388636,0.00671,91819.0,91818.0,0.90160958]
[1732014389683,0.00671,91819.0,91818.0,0.70626559]
[1732014391573,0.00671,91819.0,91818.0,0.85266722]
[1732014391993,0.00371,91819.0,91818.0,0.68726559]
[1732014392343,0.00171,91819.0,91818.0,0.67326559]
[1732014393307,0.00571,91819.0,91818.0,0.71926559]
[1732014393656,0.00371,91819.0,91818.0,0.83763371]
[1732014393826,0.00171,91819.0,91818.0,0.81963371]
[1732014394042,0.00371,91819.0,91818.0,0.84763371]
[1732014394253,0.00571,91819.0,91818.0,0.86563371]
[1732014394477,0.00571,91819.0,91818.0,0.86763371]
[1732014394687,0.00571,91819.0,91818.0,0.86563371]
[1732014395299,0.00571,91819.0,91818.0,0.86763371]
[1732014395503,0.00571,91819.0,91818.0,0.71926559]
[1732014396351,0.00571,91819.0,91818.0,0.86563371]
[1732014396565,0.00571,91819.0,91818.0,0.71926559]
[1732014396775,0.00571,91819.0,91818.0,0.72126559]
[1732014396983,0.00571,91819.0,91818.0,0.71926559]
[1732014397201,0.00571,91819.0,91818.0,0.91646777]
[1732014397417,0.00571,91819.0,91818.0,0.91446777]
[1732014397621,0.00571,91819.0,91818.0,1.15847049]
[1732014397844,0.00571,91819.0,91818.0,0.96526831]
[1732014398514,0.00571,91819.0,91818.0,0.71926559]
[1732014399364,0.00571,91819.0,91818.0,0.72126559]
[1732014399587,0.00571,91819.0,91818.0,1.50197152]
[1732014399787,0.00171,91820.0,91819.0,0.354509]
[1732014399788,1e-06,91820.0,91819.0,0.354509]
[1732014400002,1e-06,91820.0,91819.0,0.49491678]
[1732014400213,1e-06,91820.0,91819.0,0.4999689]
[1732014400638,1e-06,91820.0,91819.0,1.1999689]
[1732014400839,1e-06,91820.0,91819.0,1.1979689]
[1732014401284,0.002001,91820.0,91819.0,1.2259689]
[1732014401714,0.00171,91821.0,91820.0,0.230908]
[1732014401913,0.00171,91821.0,91820.0,1.16877055]
[1732014402152,0.00171,91821.0,91820.0,1.20516401]
[1732014402360,1e-06,91823.0,91822.0,0.022]
[1732014402572,1e-06,91823.0,91822.0,0.62818041]
[1732014402801,0.0847092,91860.0,91836.0,0.1408]
[1732014403017,0.0847092,91860.0,91836.0,0.52016341]
[1732014403202,0.0847092,91860.0,91836.0,0.51816341]
[1732014403407,0.0847092,91860.0,91839.0,0.108886]
[1732014403713,0.0847092,91860.0,91839.0,0.21794855]
[1732014403901,0.0847092,91860.0,91839.0,0.22099678]
[1732014404118,0.0847092,91860.0,91839.0,0.22299678]
[1732014405528,0.16341916,91856.0,91839.0,0.23299678]
[1732014405965,0.16341916,91856.0,91839.0,0.39169678]
[1732014406414,0.16341916,91856.0,91839.0,0.58659461]
[1732014406637,0.16341916,91856.0,91839.0,0.6619438]
[1732014406862,0.16341916,91856.0,91855.0,0.118867]
[1732014407089,0.16341916,91856.0,91855.0,0.30863548]
[1732014407362,0.0017092,91860.0,91859.0,0.110862]
[1732014407584,0.0017092,91860.0,91859.0,0.21992455]
[1732014407812,0.0017092,91860.0,91859.0,0.25070512]
[1732014408035,0.0017092,91860.0,91859.0,0.25173549]
[1732014408258,0.0017092,91860.0,91859.0,0.27373549]
[1732014409354,0.0017092,91860.0,91859.0,0.24295492]
[1732014409771,0.0017092,91860.0,91859.0,0.32766085]
[1732014409980,0.0017092,91860.0,91859.0,0.23095492]
[1732014410427,0.0017092,91860.0,91859.0,0.25495492]
[1732014411051,0.0017092,91860.0,91859.0,0.23095492]
[1732014411261,0.0037092,91860.0,91859.0,0.23095492]
[1732014411491,0.0037092,91860.0,91859.0,0.27500456]
[1732014412452,0.0017092,91860.0,91859.0,0.27500456]
[1732014412654,0.0017092,91860.0,91859.0,0.11189237]
[1732014412888,0.0017092,91860.0,91859.0,0.11689237]
[1732014413085,0.0017092,91860.0,91859.0,0.00803037]
[1732014413295,0.1226092,91860.0,91859.0,0.00803037]
[1732014413720,0.1226092,91860.0,91859.0,0.00603037]
[1732014413947,0.1226092,91860.0,91859.0,0.00503037]
[1732014414298,0.1226092,91860.0,91859.0,0.11489237]
[1732014414499,0.1226092,91860.0,91859.0,0.00703037]
[1732014414707,0.1226092,91860.0,91859.0,0.11589237]
[1732014415816,0.1226092,91860.0,91859.0,0.11489237]
[1732014416252,0.1226092,91860.0,91859.0,0.11289237]
[1732014416484,0.1356092,91860.0,91859.0,0.11389237]
[1732014417118,0.1226092,91860.0,91859.0,0.11289237]
[1732014417315,0.0776092,91860.0,91859.0,0.11289237]
[1732014417546,0.0836092,91860.0,91859.0,0.11189237]
[1732014418850,0.0776092,91860.0,91859.0,0.11189237]
[1732014419070,0.0866092,91860.0,91859.0,0.11189237]
[1732014421211,0.0107092,91860.0,91859.0,0.11189237]
[1732014421898,0.0107092,91860.0,91859.0,0.22095492]
[1732014422116,0.0017092,91860.0,91859.0,0.22095492]
[1732014422334,0.0057092,91860.0,91859.0,0.23095492]
[1732014422558,0.0057092,91860.0,91859.0,0.30645492]
[1732014422793,0.0017092,91860.0,91859.0,0.30645492]
[1732014423261,0.0057092,91860.0,91859.0,0.30645492]
[1732014423491,0.0057092,91860.0,91859.0,0.23095492]
[1732014423707,0.0017092,91860.0,91859.0,0.23395492]
[1732014424998,0.0017092,91860.0,91859.0,0.23795492]
[1732014425618,0.0017092,91860.0,91859.0,0.22795492]
[1732014425850,0.0017092,91860.0,91859.0,0.11889237]
[1732014426502,0.0017092,91860.0,91859.0,0.11189237]
[1732014426866,0.0077092,91860.0,91859.0,0.11189237]
[1732014428308,0.0017092,91860.0,91859.0,0.11189237]
[1732014428701,0.0017092,91860.0,91859.0,0.11689237]
[1732014429515,0.0017092,91860.0,91859.0,0.23295492]
[1732014429728,0.0017092,91860.0,91859.0,0.23595492]
[1732014430137,0.0017092,91860.0,91859.0,0.24095492]
[1732014430796,0.0017092,91860.0,91859.0,0.23095492]
[1732014431688,0.07350535,91876.0,91875.0,0.108843]
[1732014431897,0.07350535,91876.0,91875.0,0.1118489]
[1732014432958,0.08650535,91876.0,91875.0,0.1128489]
[1732014433364,0.08650535,91876.0,91875.0,0.0040059]
[1732014433582,0.08650535,91876.0,91875.0,0.0050059]
[1732014433801,0.08650535,91876.0,91875.0,0.1138489]
[1732014436453,0.013,91876.0,91875.0,0.1138489]
[1732014437300,0.013,91876.0,91875.0,0.1128489]
[1732014437519,0.12726831,91882.0,91881.0,0.108836]
[1732014437973,0.12726831,91882.0,91881.0,0.111834]
[1732014439073,0.00016831,91882.0,91881.0,0.111834]
[1732014439338,0.00016831,91882.0,91881.0,0.112834]
[1732014439993,0.00016831,91882.0,91881.0,0.111834]
[1732014440210,0.00016831,91882.0,91881.0,0.112834]
[1732014441509,0.00016831,91882.0,91881.0,0.113834]
[1732014441510,0.01216831,91882.0,91881.0,0.113834]
[1732014441965,0.00016831,91882.0,91881.0,0.112834]
[1732014442163,0.00016831,91882.0,91881.0,0.00386814]
[1732014442164,0.01216831,91882.0,91881.0,0.00386814]
[1732014442368,0.01216831,91882.0,91881.0,0.11270414]
[1732014446579,0.01216831,91882.0,91881.0,0.00386814]
[1732014446802,0.01216831,91882.0,91881.0,0.11270414]
[1732014447267,0.05806831,91882.0,91881.0,0.11270414]
[1732014449687,0.01216831,91882.0,91881.0,0.47914083]
[1732014449920,0.01216831,91882.0,91881.0,0.24007828]
[1732014450140,0.01216831,91882.0,91881.0,0.00386814]
[1732014450581,0.01216831,91882.0,91881.0,0.00286814]
[1732014450582,0.00016831,91882.0,91881.0,0.00286814]
[1732014450817,0.10900331,91882.0,91881.0,0.00286814]
[1732014451034,0.0799,91869.0,91863.0,0.16341916]
[1732014451253,0.047,91868.0,91863.0,0.16341916]
[1732014451471,0.047,91868.0,91864.0,0.00274775]
[1732014451920,0.047,91868.0,91852.0,0.09749013]
[1732014451921,0.217732,91856.0,91849.0,0.09749013]
[1732014452127,0.217732,91856.0,91846.0,0.1462352]
[1732014452128,0.29782955,91855.0,91854.0,0.16341916]
[1732014452351,0.18896255,91855.0,91844.0,0.16341916]
[1732014452592,0.108869,91854.0,91846.0,0.108877]
[1732014452820,0.108873,91850.0,91843.0,0.108881]
[1732014453036,0.0498,91849.0,91844.0,0.10888]
[1732014453489,0.0498,91849.0,91845.0,0.108878]
[1732014455644,0.0498,91849.0,91845.0,0.111878]
[1732014455837,0.0498,91849.0,91846.0,0.108877]
[1732014456048,0.0548,91849.0,91845.0,0.003]
[1732014456249,0.0548,91849.0,91846.0,0.217755]
[1732014456665,0.0548,91849.0,91848.0,0.108875]
[1732014456869,0.005,91849.0,91848.0,0.108875]
[1732014457231,0.005,91849.0,91848.0,0.11162275]
[1732014457416,0.10906255,91853.0,91850.0,0.108873]
[1732014457844,0.10906255,91853.0,91851.0,0.00274775]
[1732014458047,0.10906255,91853.0,91851.0,0.11161875]
[1732014458254,0.10906255,91853.0,91852.0,0.10887]
[1732014458480,0.10906255,91853.0,91846.0,0.217755]
[1732014458693,0.10906255,91853.0,91850.0,0.108872]
[1732014458892,0.008,91849.0,91848.0,0.326624]
[1732014459148,0.008,91849.0,91848.0,0.32937175]
[1732014459354,0.11106255,91853.0,91850.0,0.108872]
[1732014459563,0.11106255,91853.0,91848.0,0.22049675]
[1732014459793,0.11106255,91853.0,91852.0,0.10887]
[1732014460203,0.11106255,91853.0,91852.0,0.11163955]
[1732014460835,0.0799,91855.0,91854.0,0.108868]
[1732014461056,0.01,91868.0,91852.0,0.22050855]
[1732014461057,0.0798,91865.0,91859.0,0.217722]
[1732014461274,0.27248171,91864.0,91862.0,0.108858]
[1732014461492,0.10906255,91864.0,91862.0,0.108858]
[1732014461750,0.10906255,91864.0,91863.0,0.11162655]
[1732014462178,0.21791855,91864.0,91863.0,0.00276955]
[1732014462415,0.21991855,91864.0,91863.0,0.00276955]
[1732014462630,0.108857,91863.0,91857.0,0.108864]
[1732014462854,0.12206255,91864.0,91863.0,0.002]
[1732014463304,0.42733771,91864.0,91863.0,0.002]
[1732014463502,0.31221855,91864.0,91863.0,0.002]
[1732014463717,0.39471855,91864.0,91863.0,0.002]
[1732014464128,0.38371855,91864.0,91863.0,0.002]
[1732014464329,0.39471855,91864.0,91863.0,0.003]
[1732014464757,0.39271855,91864.0,91848.0,0.000854]
[1732014464986,0.108868,91854.0,91853.0,0.16341916]
[1732014465197,0.108874,91849.0,91848.0,0.000854]
[1732014465404,0.184874,91849.0,91848.0,0.000854]
[1732014466042,0.29393655,91849.0,91848.0,0.000854]
[1732014466242,0.34213655,91849.0,91848.0,0.000854]
[1732014466474,0.37513655,91849.0,91848.0,0.000854]
[1732014466903,0.47513655,91849.0,91848.0,0.000854]
[1732014467759,0.48513655,91849.0,91848.0,0.002854]
[1732014468371,0.47713655,91849.0,91848.0,0.002854]
[1732014468600,0.48813655,91849.0,91848.0,0.004854]
[1732014469946,0.221874,91849.0,91848.0,0.004854]
[1732014470182,0.121874,91849.0,91848.0,0.004854]
[1732014470399,0.013,91849.0,91848.0,0.004854]
[1732014470635,0.013,91849.0,91848.0,0.113729]
[1732014470846,0.121874,91849.0,91848.0,0.00768953]
[1732014471064,0.121874,91849.0,91848.0,0.000854]
[1732014471065,0.108874,91849.0,91848.0,0.000854]
[1732014471296,0.121874,91849.0,91848.0,0.002854]
[1732014471509,0.119874,91849.0,91848.0,0.001854]
[1732014471723,0.108874,91849.0,91848.0,0.000854]
[1732014472132,0.108874,91849.0,91848.0,0.002854]
[1732014473400,0.002,91849.0,91848.0,0.003854]
[1732014473611,0.002,91849.0,91848.0,0.001854]
[1732014474329,0.01,91849.0,91848.0,0.11355169]
[1732014474546,0.01,91849.0,91848.0,0.11455169]
[1732014474775,0.012,91849.0,91848.0,0.11455169]
[1732014475000,0.002,91849.0,91848.0,0.11355169]
[1732014475429,0.005,91849.0,91848.0,0.11255169]
[1732014476790,0.10887,91853.0,91848.0,0.11855169]
[1732014476974,0.10887,91853.0,91848.0,0.12455169]
[1732014477202,0.10887,91853.0,91848.0,0.11855169]
[1732014477381,0.108867,91855.0,91849.0,0.108873]
[1732014477632,0.21773,91857.0,91849.0,0.108873]
[1732014477800,0.108868,91855.0,91849.0,0.108873]
[1732014478043,0.326595,91857.0,91851.0,0.108871]
[1732014478224,0.10887,91853.0,91850.0,0.00282269]
[1732014478449,0.108871,91852.0,91848.0,0.000854]
[1732014478644,0.108871,91852.0,91851.0,0.00282269]
[1732014478785,0.326608,91853.0,91848.0,0.000854]
[1732014478990,0.217736,91854.0,91848.0,0.000854]
[1732014478991,0.108874,91849.0,91848.0,0.000854]
[1732014482000,0.109874,91849.0,91848.0,0.000854]
[1732014487268,0.001,91849.0,91848.0,0.000854]
[1732014487476,0.109874,91849.0,91848.0,0.000854]
[1732014492958,0.21893655,91849.0,91848.0,0.000854]
[1732014493831,0.21793655,91849.0,91848.0,0.000854]
[1732014494049,0.21893655,91849.0,91848.0,0.000854]
[1732014494455,0.21993655,91849.0,91848.0,0.002854]
[1732014494905,0.23693655,91849.0,91848.0,0.003854]
[1732014499965,0.49873655,91849.0,91848.0,0.003854]
[1732014500589,0.59632989,91849.0,91848.0,0.003854]
[1732014500796,0.60632989,91849.0,91848.0,0.003854]
[1732014501031,0.266283,91841.0,91840.0,0.0008544]
[1732014501256,0.61271969,91841.0,91840.0,0.0008544]
[1732014501676,0.7592927,91841.0,91840.0,0.0008544]
[1732014501902,0.71040295,91841.0,91840.0,0.0008544]
[1732014502117,0.61271969,91841.0,91840.0,0.0008544]
[1732014503397,0.63971969,91841.0,91840.0,0.0008544]
[1732014504067,0.66671969,91841.0,91840.0,0.0018544]
[1732014505952,0.71085244,91841.0,91840.0,0.0018544]
[1732014512658,0.71898214,91841.0,91840.0,0.0018544]
[1732014512873,0.591608,91841.0,91840.0,0.0018544]
[1732014513861,0.59160783,91841.0,91840.0,0.0018544]
[1732014517553,0.59973976,91841.0,91840.0,0.0018544]
[1732014518115,0.59161023,91841.0,91840.0,0.0018544]
[1732014519299,0.59161023,91841.0,91840.0,4e-07]
[1732014521125,0.59161462,91841.0,91840.0,0.0008552]
[1732014521358,0.59975093,91841.0,91840.0,0.0008552]
[1732014521675,0.61277047,91841.0,91840.0,0.0008552]
[1732014522729,0.68532796,91841.0,91840.0,0.0008552]
[1732014524352,0.68504796,91841.0,91840.0,0.0008552]
[1732014525553,0.60435415,91841.0,91840.0,0.0008552]
[1732014525757,0.68504796,91841.0,91840.0,0.0008552]
[1732014534030,0.108917,91813.0,91808.0,0.0797]
[1732014534244,0.30680967,91813.0,91808.0,0.0797]
[1732014534465,0.30680967,91813.0,91812.0,0.0043152]
[1732014534693,0.31986778,91813.0,91812.0,0.0008547]
[1732014535422,0.34152967,91813.0,91812.0,0.0108547]
[1732014535626,0.43390601,91813.0,91812.0,0.0008547]
[1732014535829,0.44290601,91813.0,91812.0,0.0008547]
[1732014536055,0.62584403,91813.0,91812.0,0.0038547]
[1732014536284,0.62584403,91813.0,91807.0,0.0008547]
[1732014536285,0.228642,91808.0,91807.0,0.0008547]
[1732014536519,0.228645,91806.0,91805.0,0.0008548]
[1732014536746,0.3819202,91806.0,91805.0,0.0008548]
[1732014537446,0.41619847,91806.0,91805.0,0.0008548]
[1732014537884,0.41619847,91806.0,91805.0,8e-07]
[1732014537885,0.45013959,91806.0,91805.0,8e-07]
[1732014538087,0.251647,91804.0,91803.0,5e-07]
[1732014538335,0.4331222,91804.0,91803.0,5e-07]
[1732014538568,0.02172,91799.0,91798.0,3e-07]
[1732014538798,0.44231555,91799.0,91798.0,3e-07]
[1732014539022,0.47530069,91799.0,91798.0,3e-07]
[1732014539216,0.57815698,91799.0,91798.0,3e-07]
[1732014539700,0.57815698,91799.0,91798.0,0.0010003]
[1732014539938,0.47747426,91799.0,91798.0,0.0010003]
[1732014540361,0.42287426,91799.0,91798.0,0.0030003]
[1732014541045,0.39587426,91799.0,91798.0,0.0020003]
[1732014541472,0.41471555,91799.0,91798.0,0.0030003]
[1732014541690,0.38771555,91799.0,91798.0,0.0010003]
[1732014541905,0.38771555,91799.0,91798.0,3e-07]
[1732014542186,0.36884385,91799.0,91798.0,3e-07]
[1732014542403,0.36884385,91799.0,91798.0,0.0010003]
[1732014542404,0.46807182,91799.0,91798.0,0.0010003]
[1732014542821,0.44107182,91799.0,91798.0,3e-07]
[1732014543071,0.44107182,91799.0,91798.0,0.0010003]
[1732014543072,0.49507182,91799.0,91798.0,0.0010003]
[1732014543281,0.44107182,91799.0,91798.0,0.0010003]
[1732014543706,0.46807182,91799.0,91798.0,0.0010003]
[1732014544352,0.44107182,91799.0,91798.0,3e-07]
[1732014544810,0.46807182,91799.0,91798.0,0.0010003]
[1732014548130,0.45994352,91799.0,91798.0,0.0010003]
[1732014548346,0.46806125,91799.0,91798.0,0.0010003]
[1732014549653,0.45994352,91799.0,91798.0,0.0010003]
[1732014550089,0.46806031,91799.0,91798.0,0.0010003]
[1732014559335,0.46807312,91799.0,91798.0,0.0010003]
[1732014560787,0.54884007,91799.0,91798.0,0.0010003]
[1732014561418,0.46807312,91799.0,91798.0,0.0010003]
[1732014561632,0.54884007,91799.0,91798.0,0.0010003]
[1732014561843,0.46807312,91799.0,91798.0,0.0010003]
[1732014562296,0.48108048,91799.0,91798.0,0.0010003]
[1732014563571,0.45408048,91799.0,91798.0,3e-07]
[1732014563944,0.56184743,91799.0,91798.0,0.0010003]
[1732014564352,0.53484743,91799.0,91798.0,3e-07]
[1732014564786,0.56184743,91799.0,91798.0,0.0010003]
[1732014566359,0.53884743,91799.0,91798.0,0.0010003]
[1732014567453,0.45808048,91799.0,91798.0,0.0010003]
[1732014568496,0.45817007,91799.0,91798.0,0.0010003]
[1732014573729,0.3029421,91799.0,91798.0,0.0790003]
[1732014573942,0.2932221,91799.0,91798.0,0.0790003]
[1732014576596,0.108946,91789.0,91783.0,0.1042194]
[1732014576970,0.00816406,91788.0,91784.0,0.00274021]
[1732014577105,0.108947,91788.0,91784.0,0.00274021]
[1732014577289,0.108947,91788.0,91783.0,0.00028]
[1732014577489,0.108945,91789.0,91785.0,0.00274021]
[1732014577741,0.108945,91789.0,91783.0,0.00028]
[1732014577944,0.122945,91789.0,91783.0,0.00228]
[1732014578144,0.023,91788.0,91784.0,0.00374021]
[1732014578302,0.131947,91788.0,91784.0,0.00374021]
[1732014578660,0.122946,91789.0,91783.0,0.00228]
[1732014578874,0.147946,91789.0,91785.0,0.001]
[1732014579088,0.039,91789.0,91785.0,0.001]
[1732014579457,0.133946,91789.0,91786.0,0.1297]
[1732014579659,0.025,91789.0,91786.0,0.13244021]
[1732014579909,0.150946,91789.0,91786.0,0.13244021]
[1732014580116,0.125946,91789.0,91786.0,0.13244021]
[1732014580348,0.023,91788.0,91786.0,0.13244021]
[1732014580548,0.02289018,91788.0,91786.0,0.13444021]
[1732014580748,0.018,91789.0,91786.0,0.13444021]
[1732014580954,0.126945,91789.0,91786.0,0.13444021]
[1732014581192,0.135945,91789.0,91786.0,0.13344021]
[1732014581406,0.108945,91789.0,91786.0,0.13244021]
[1732014581554,0.027,91788.0,91786.0,0.13344021]
[1732014581958,0.108945,91790.0,91786.0,0.13244021]
[1732014582163,0.108944,91790.0,91786.0,0.13244021]
[1732014582578,0.217881,91793.0,91786.0,0.13244021]
[1732014582927,0.018,91788.0,91787.0,0.108947]
[1732014583129,0.018,91788.0,91787.0,0.109227]
[1732014583340,0.027,91789.0,91788.0,0.108946]
[1732014583540,0.1106394,91803.0,91794.0,0.108939]
[1732014583849,0.011,91790.0,91789.0,0.326833]
[1732014584186,0.013,91793.0,91791.0,0.108941]
[1732014584384,0.013,91793.0,91792.0,0.108941]
[1732014584592,0.013,91793.0,91792.0,0.00270803]
[1732014584793,0.0017104,91803.0,91792.0,0.00270803]
[1732014585008,0.217879,91795.0,91792.0,0.00270803]
[1732014585393,0.108944,91790.0,91789.0,0.002]
[1732014585928,0.112944,91790.0,91789.0,0.003]
[1732014586532,0.112944,91790.0,91789.0,0.001]
[1732014588471,0.114944,91790.0,91789.0,0.002]
[1732014588776,0.006,91790.0,91789.0,0.002]
[1732014589595,0.006,91790.0,91789.0,0.0028552]
[1732014590645,0.006,91790.0,91789.0,0.0031352]
[1732014590853,0.006,91790.0,91789.0,0.11478378]
[1732014591061,0.006,91790.0,91789.0,0.23798378]
[1732014592331,0.006,91790.0,91789.0,0.38471933]
[1732014594067,0.006,91790.0,91789.0,0.23798378]
[1732014597107,0.006,91790.0,91789.0,0.33575636]
[1732014601224,0.006,91790.0,91789.0,0.23798378]
[1732014601855,0.006,91790.0,91789.0,0.38471933]
[1732014603870,0.006,91790.0,91789.0,0.23798378]
[1732014605415,0.006,91790.0,91789.0,0.24798378]
[1732014605642,0.006,91790.0,91789.0,0.56478164]
[1732014605825,0.006,91790.0,91789.0,0.36904633]
[1732014606163,0.002,91790.0,91789.0,0.36604633]
[1732014606377,0.002,91790.0,91789.0,0.37404633]
[1732014606580,0.002,91790.0,91789.0,0.45681328]
[1732014606581,0.003,91790.0,91789.0,0.45681328]
[1732014607043,0.002,91790.0,91789.0,0.44881328]
[1732014607734,0.0017108,91797.0,91796.0,0.109217]
[1732014607953,0.0017108,91797.0,91796.0,0.3364902]
[1732014608173,0.0017108,91797.0,91796.0,0.19266474]
[1732014608406,0.0017108,91797.0,91796.0,0.33915445]
[1732014609315,0.0037108,91797.0,91796.0,0.34815445]
[1732014609519,0.0037108,91797.0,91796.0,0.33915445]
[1732014609520,0.0017108,91797.0,91796.0,0.33915445]
[1732014609750,0.0057108,91797.0,91796.0,0.35215445]
[1732014610209,0.0057108,91797.0,91796.0,0.35214207]
[1732014610449,0.0047108,91797.0,91796.0,0.20166474]
[1732014611164,0.0047108,91797.0,91796.0,0.34814207]
[1732014611399,0.0047108,91797.0,91796.0,0.25046474]
[1732014611650,0.0057108,91797.0,91796.0,0.26146474]
[1732014611871,0.0057108,91797.0,91796.0,0.34406474]
[1732014612769,0.0057108,91797.0,91796.0,0.34206474]
[1732014613203,0.0057108,91797.0,91796.0,0.34406474]
[1732014613644,0.0057108,91797.0,91796.0,0.34206474]
[1732014613866,0.0057108,91797.0,91796.0,0.26129779]
[1732014614109,0.0057108,91797.0,91796.0,0.34206474]
[1732014616679,0.0057108,91797.0,91796.0,0.55389424]
[1732014616894,0.0057108,91797.0,91796.0,0.47312729]
[1732014617125,0.0057108,91797.0,91796.0,0.47112729]
[1732014617576,0.0057108,91797.0,91796.0,0.47312729]
[1732014618058,0.0057108,91797.0,91796.0,0.55389424]
[1732014618918,0.0057108,91797.0,91796.0,0.65389424]
[1732014619137,0.0017108,91797.0,91796.0,0.63589424]
[1732014619377,0.0047108,91797.0,91796.0,0.66689424]
[1732014619582,0.0067108,91797.0,91796.0,0.58212729]
[1732014619793,0.0067108,91797.0,91796.0,0.49936034]
[1732014620006,0.0067108,91797.0,91796.0,0.38936034]
[1732014620232,0.0067108,91797.0,91796.0,0.34418273]
[1732014620485,0.0067108,91797.0,91796.0,0.46324528]
[1732014620714,0.0067108,91797.0,91796.0,0.25996034]
[1732014620715,0.0037108,91797.0,91796.0,0.25996034]
[1732014620911,0.0017108,91797.0,91796.0,0.24296034]
[1732014621123,0.0017108,91797.0,91796.0,0.24096034]
[1732014621328,0.0037108,91797.0,91796.0,0.26696034]
[1732014621546,0.0057108,91797.0,91796.0,0.29496034]
[1732014621767,0.0037108,91797.0,91796.0,0.26696034]
[1732014621978,0.0037108,91797.0,91796.0,0.29296034]
[1732014622354,0.0017108,91797.0,91796.0,0.26696034]
[1732014622801,0.0017108,91797.0,91796.0,0.26896034]
[1732014623036,0.0027108,91797.0,91796.0,0.28196034]
[1732014624125,0.0027108,91797.0,91796.0,0.27996034]
[1732014629496,0.0027108,91797.0,91796.0,0.28196034]
[1732014629730,0.0027108,91797.0,91796.0,0.27996034]
[1732014629954,0.0027108,91797.0,91796.0,0.36072729]
[1732014631734,0.0027108,91797.0,91796.0,0.27996034]
[1732014631938,0.0027108,91797.0,91796.0,0.36072729]
[1732014632331,0.0027108,91797.0,91796.0,0.24166474]
[1732014632483,0.0027108,91797.0,91796.0,0.40502426]
[1732014632691,0.0027108,91797.0,91796.0,0.16089779]
[1732014633085,0.0027108,91797.0,91796.0,0.35620266]
[1732014633307,0.0027108,91797.0,91796.0,0.30739838]
[1732014634149,0.0027108,91797.0,91796.0,0.16089779]
[1732014636291,0.0027108,91797.0,91796.0,0.35620266]
[1732014638102,0.0027108,91797.0,91796.0,0.16089779]
[1732014639986,0.0027108,91797.0,91796.0,0.40502426]
[1732014641067,0.0027108,91797.0,91796.0,0.16089779]
[1732014641901,0.0027108,91797.0,91796.0,0.26996034]
[1732014642123,0.0027108,91797.0,91796.0,0.40006034]
[1732014642523,0.0027108,91797.0,91796.0,0.40206034]
[1732014643462,0.0027108,91797.0,91796.0,0.26996034]
[1732014649195,0.00248239,91797.0,91796.0,0.26996034]
[1732014650364,0.00248239,91797.0,91796.0,0.57333954]
[1732014650812,0.00248239,91797.0,91796.0,0.57533954]
[1732014651424,0.00248239,91797.0,91796.0,0.28196034]
[1732014652110,0.00248239,91797.0,91796.0,0.11802856]
[1732014658633,0.00248239,91797.0,91796.0,0.11602856]
[1732014661664,0.00248239,91797.0,91796.0,0.19879551]
[1732014662127,0.07778239,91797.0,91796.0,0.00289419]
[1732014662330,0.24752102,91797.0,91796.0,0.00289419]
[1732014662540,0.16204663,91790.0,91789.0,0.09876517]
[1732014662784,0.42847613,91790.0,91789.0,0.0008552]
[1732014663003,0.43847613,91790.0,91789.0,0.0008552]
[1732014663208,0.43847613,91790.0,91781.0,0.0008548]
[1732014663209,0.13475563,91782.0,91781.0,0.0008548]
[1732014663455,0.12476063,91778.0,91777.0,0.0008549]
[1732014663699,0.36926497,91778.0,91777.0,0.0008549]
[1732014664344,0.37926497,91778.0,91777.0,0.0008549]
[1732014664564,0.00580263,91772.0,91767.0,0.000855]
[1732014664773,0.31203018,91772.0,91767.0,0.000855]
[1732014666530,0.33903018,91772.0,91767.0,0.000855]
[1732014666700,0.36603018,91772.0,91771.0,0.001854]
[1732014667155,0.37603018,91772.0,91771.0,0.001854]
[1732014667598,0.37603018,91772.0,91771.0,0.0014142]
[1732014667872,0.36603018,91772.0,91771.0,0.0014142]
[1732014668084,0.36022755,91772.0,91771.0,0.0014142]
[1732014668282,0.36603018,91772.0,91771.0,0.0014142]
[1732014668463,0.36022755,91772.0,91771.0,0.0014142]
[1732014668906,0.36603018,91772.0,91771.0,0.0014142]
[1732014680854,0.42233018,91772.0,91771.0,0.0014142]
[1732014686134,0.41233018,91772.0,91771.0,0.0014142]
[1732014686342,0.36603018,91772.0,91771.0,0.0014142]
[1732014686751,0.24706518,91772.0,91771.0,0.0014142]
[1732014686987,0.27783018,91772.0,91771.0,0.0014142]
[1732014687256,0.27783018,91772.0,91771.0,0.0039768]
[1732014687462,0.16306255,91772.0,91771.0,0.0014142]
[1732014687876,0.05980263,91772.0,91771.0,0.0039768]
[1732014688737,0.03280263,91772.0,91771.0,0.0029768]
[1732014688951,0.00580263,91772.0,91771.0,0.0029768]
[1732014689158,0.13476763,91772.0,91771.0,0.0029768]
[1732014689361,0.12476763,91772.0,91771.0,0.0029768]
[1732014689536,0.14376763,91772.0,91771.0,0.0024142]
[1732014689778,0.16376763,91772.0,91771.0,0.0024142]
[1732014689986,0.12476763,91772.0,91771.0,0.0004142]
[1732014690211,0.14476763,91772.0,91771.0,0.0004142]
[1732014690448,0.14476763,91772.0,91771.0,0.0024142]
[1732014690449,0.15876763,91772.0,91771.0,0.0024142]
[1732014690660,0.01,91764.0,91746.0,0.12769142]
[1732014690926,0.01,91764.0,91747.0,0.2205526]
[1732014691155,0.01,91755.0,91747.0,0.0025626]
[1732014691357,0.10899,91751.0,91747.0,0.0025626]
[1732014691569,0.108992,91750.0,91739.0,0.12769142]
[1732014691790,0.01,91755.0,91748.0,0.00255158]
[1732014691994,0.16341916,91754.0,91747.0,0.108994]
[1732014692236,0.16341916,91754.0,91749.0,0.00255158]
[1732014692446,0.16341916,91754.0,91746.0,0.011]
[1732014692447,0.011,91764.0,91746.0,0.13869142]
[1732014692650,0.217945,91767.0,91753.0,0.12769142]
[1732014692848,0.108975,91764.0,91753.0,0.23667942]
[1732014693058,0.001,91755.0,91754.0,0.00255551]
[1732014693490,0.01,91760.0,91754.0,0.00255551]
[1732014694357,0.11898,91760.0,91754.0,0.00255551]
[1732014694591,0.11898,91760.0,91753.0,0.009]
[1732014694822,0.11898,91760.0,91755.0,0.00255551]
[1732014695023,0.11898,91760.0,91751.0,0.108989]
[1732014695223,0.11898,91760.0,91756.0,0.00255551]
[1732014695358,0.002,91755.0,91754.0,0.002]
[1732014695571,0.001,91755.0,91752.0,0.108989]
[1732014695744,0.11998,91760.0,91755.0,0.002]